[Event "26th Zadar Open 2019"]
[Site "Zadar"]
[Date "2019.12.15"]
[Round "1.23"]
[White "Vidic, Teja"]
[Black "Manush Shah"]
[Result "0-1"]
[ECO "B11"]
[WhiteElo "2221"]
[BlackElo "2341"]
[Annotator "NA"]
[PlyCount "114"]
[EventDate "2019.12.15"]
[EventType "swiss"]
[EventCountry "CRO"]
[SourceTitle "playchess.com"]
[Source "ChessBase"]
[SourceQuality "1"]
[TimeControl "40/5400+30:1800+30"]

1. e4 {[%emt 0:00:30]} c6 {[%emt 0:00:30]} 2. Nc3 {[%emt 0:00:00]} d5 {[%emt 0:00:30]} 3. Nf3 {[%emt 0:00:00]} dxe4 {[%emt 0:00:00]} 4. Nxe4 {[%emt 0:00:30]} Nf6 {[%emt 0:00:00]} 5. Qe2 {[%emt 0:00:30]} Nxe4 {[%emt 0:00:30]} 6. Qxe4 {[%emt 0:00:00]} Qd5 {[%emt 0:00:00]} 7. Qf4 {[%emt 0:00:00]} Qf5 {[%emt 0:04:00]} 8. Qe3 {[%emt 0:04:30]} Qe6 {[%emt 0:09:30]} 9. b3 {[%emt 0:00:30]} Qxe3+ {[%emt 0:00:30]} 10. fxe3 {[%emt 0:00:00]} f6 {[%emt 0:02:30]} 11. Bb2 {[%emt 0:02:00]} Bg4 {[%emt 0:00:30]} 12. h3 {[%emt 0:05:30]} Bh5 {[%emt 0:01:30]} 13. g4 {[%emt 0:01:30]} Bf7 {[%emt 0:01:30]} 14. O-O-O {[%emt 0:03:30]} a5 {[%emt 0:00:30]} 15. d4 {[%emt 0:08:30]} Bd5 {[%emt 0:09:30]} 16. Bg2 {[%emt 0:09:30]} Nd7 {[%emt 0:00:30]} 17. e4 {[%emt 0:14:30]} Bxe4 {[%emt 0:03:30]} 18. Rhe1 {[%emt 0:00:30]} Bd5 {[%emt 0:02:30]} 19. c4 {[%emt 0:01:30]} Bf7 {[%emt 0:00:30]} 20. d5 {[%emt 0:04:30]} cxd5 {[%emt 0:02:30]} 21. cxd5 {[%emt 0:00:30]} Rc8+ {[%emt 0:14:30]} 22. Kb1 {[%emt 0:00:30]} Rc5 {[%emt 0:00:30]} 23. Nh4 {[%emt 0:11:30]} g6 {[%emt 0:09:30]} 24. a4 {[%emt 0:09:30]} Kd8 {[%emt 0:04:30]} 25. Be4 {[%emt 0:07:51]} Bh6 {[%emt 0:06:30]} 26. Nf3 {[%emt 0:01:49]} Kc8 {[%emt 0:11:41]} 27. Ba3 {[%emt 0:04:11]} Rc3 {[%emt 0:01:21]} 28. Kb2 {[%emt 0:01:56]} Re3 {[%emt 0:03:45]} 29. Rc1+ {[%emt 0:04:10]} Kd8 {[%emt 0:01:29]} 30. Rxe3 {[%emt 0:00:10]} Bxe3 {[%emt 0:00:12]} 31. Rc3 {[%emt 0:00:18]} Bf4 {[%emt 0:00:51]} 32. Nd4 {[%emt 0:02:55]} Be5 {[%emt 0:01:20]} 33. Rd3 {[%emt 0:00:03]} h5 {[%emt 0:02:20]} 34. Kc2 {[%emt 0:01:17]} hxg4 {[%emt 0:01:57]} 35. Ne6+ {[%emt 0:00:11]} Ke8 {[%emt 0:00:57]} 36. Ng7+ {[%emt 0:01:08]} Kf8 {[%emt 0:01:07]} 37. Ne6+ {[%emt 0:00:03]} Kg8 {[%emt 0:00:53]} 38. hxg4 {[%emt 0:00:18]} Rh2+ {[%emt 0:00:04]} 39. Kb1 {[%emt 0:02:37]} Re2 {[%emt 0:02:51]} 40. Bf3 {[%emt 0:00:07]} Re1+ {[%emt 0:00:12]} 41. Kc2 {[%emt 0:00:26]} g5 {[%emt 0:11:00]} 42. Kd2 {[%emt 0:05:30]} Bg6 {[%emt 0:04:47]} 43. Kxe1 {[%emt 0:00:30]} Bxd3 {[%emt 0:00:03]} 44. Kd2 {[%emt 0:00:30]} Bf1 {[%emt 0:01:47]} 45. Bxe7 {[%emt 0:01:30]} Kf7 {[%emt 0:00:23]} 46. Ba3 {[%emt 0:02:30]} b6 {[%emt 0:01:38]} 47. Be4 {[%emt 0:02:30]} b5 {[%emt 0:06:19]} 48. axb5 {[%emt 0:01:30]} Bxb5 {[%emt 0:00:10]} 49. Nd8+ {[%emt 0:01:10]} Ke8 {[%emt 0:02:12]} 50. Nc6 {[%emt 0:00:20]} Bf4+ {[%emt 0:00:14]} 51. Kc3 {[%emt 0:08:05]} Ne5 {[%emt 0:01:26]} 52. Kd4 {[%emt 0:01:12]} Bxc6 {[%emt 0:01:08]} 53. dxc6 {[%emt 0:00:10]} Nxg4 {[%emt 0:00:13]} 54. Bf5 {[%emt 0:04:37]} Ne3 {[%emt 0:00:41]} 55. Be6 {[%emt 0:01:45]} Nc2+ {[%emt 0:01:15]} 56. Ke4 {[%emt 0:02:21]} Nxa3 {[%emt 0:00:17]} 57. Kf5 {[%emt 0:00:04]} Ke7 {[%emt 0:00:08]} 0-1

[Event "26th Zadar Open 2019"]
[Site "Zadar"]
[Date "2019.12.15"]
[Round "1.24"]
[White "Bhambure, Shantanu"]
[Black "Ly, Dominik"]
[Result "1-0"]
[ECO "D61"]
[WhiteElo "2340"]
[BlackElo "2220"]
[Annotator "NA"]
[PlyCount "61"]
[EventDate "2019.12.15"]
[EventType "swiss"]
[EventCountry "CRO"]
[SourceTitle "playchess.com"]
[Source "ChessBase"]
[SourceQuality "1"]
[TimeControl "40/5400+30:1800+30"]

1. d4 {[%emt 0:00:30]} d5 {[%emt 0:00:30]} 2. c4 {[%emt 0:00:00]} c6 {[%emt 0:00:30]} 3. Nf3 {[%emt 0:00:00]} Nf6 {[%emt 0:00:00]} 4. Qc2 {[%emt 0:00:30]} e6 {[%emt 0:01:00]} 5. Bg5 {[%emt 0:01:30]} Nbd7 {[%emt 0:01:30]} 6. e3 {[%emt 0:01:30]} Be7 {[%emt 0:02:30]} 7. Nc3 {[%emt 0:00:30]} O-O {[%emt 0:00:30]} 8. Rd1 {[%emt 0:00:30]} b6 {[%emt 0:05:30]} 9. Bd3 {[%emt 0:17:30]} Bb7 {[%emt 0:02:30]} 10. O-O {[%emt 0:00:30]} Rc8 {[%emt 0:01:30]} 11. Qb1 {[%emt 0:15:30]} h6 {[%emt 0:05:30]} 12. Bh4 {[%emt 0:03:30]} c5 {[%emt 0:05:30]} 13. cxd5 {[%emt 0:07:30]} exd5 {[%emt 0:01:30]} 14. dxc5 {[%emt 0:02:30]} bxc5 {[%emt 0:04:30]} 15. Bf5 {[%emt 0:02:30]} Rb8 {[%emt 0:11:30]} 16. Bg3 {[%emt 0:04:30]} Ra8 {[%emt 0:00:30]} 17. Rfe1 {[%emt 0:12:30]} Nb6 {[%emt 0:10:30]} 18. e4 {[%emt 0:07:30]} d4 {[%emt 0:08:30]} 19. Nb5 {[%emt 0:00:30]} Ne8 {[%emt 0:07:30]} 20. Nfxd4 {[%emt 0:03:18]} cxd4 {[%emt 0:11:40]} 21. Rxd4 {[%emt 0:00:10]} Nd5 {[%emt 0:00:59]} 22. exd5 {[%emt 0:00:57]} Bf6 {[%emt 0:01:24]} 23. Rdd1 {[%emt 0:02:24]} Qb6 {[%emt 0:00:37]} 24. Nc3 {[%emt 0:03:35]} Rd8 {[%emt 0:02:49]} 25. Be5 {[%emt 0:03:44]} Bxe5 {[%emt 0:01:34]} 26. Rxe5 {[%emt 0:00:04]} Nf6 {[%emt 0:00:13]} 27. Qd3 {[%emt 0:03:41]} Qd6 {[%emt 0:04:13]} 28. Qd4 {[%emt 0:03:16]} g6 {[%emt 0:04:55]} 29. Bh3 {[%emt 0:00:31]} a6 {[%emt 0:00:53]} 30. g3 {[%emt 0:00:54]} Rfe8 {[%emt 0:02:30]} 31. f4 {[%emt 0:01:50]} 1-0

[Event "26th Zadar Open 2019"]
[Site "Zadar"]
[Date "2019.12.15"]
[Round "1.25"]
[White "Hrescak, Ivana"]
[Black "Nester, Ihor"]
[Result "1/2-1/2"]
[ECO "A80"]
[WhiteElo "2194"]
[BlackElo "2329"]
[Annotator "NA"]
[PlyCount "104"]
[EventDate "2019.12.15"]
[EventType "swiss"]
[EventCountry "CRO"]
[SourceTitle "playchess.com"]
[Source "ChessBase"]
[SourceQuality "1"]
[TimeControl "40/5400+30:1800+30"]

1. d4 {[%emt 0:00:30]} f5 {[%emt 0:00:30]} 2. Bg5 {[%emt 0:01:30]} g6 {[%emt 0:00:30]} 3. h4 {[%emt 0:00:00]} Bg7 {[%emt 0:00:00]} 4. e3 {[%emt 0:01:00]} h6 {[%emt 0:02:00]} 5. Bf4 {[%emt 0:00:30]} d6 {[%emt 0:00:30]} 6. Nf3 {[%emt 0:02:30]} Nf6 {[%emt 0:10:30]} 7. Bc4 {[%emt 0:03:30]} e6 {[%emt 0:00:30]} 8. Nc3 {[%emt 0:01:30]} Qe7 {[%emt 0:01:30]} 9. Qe2 {[%emt 0:03:30]} Nc6 {[%emt 0:01:30]} 10. Bh2 {[%emt 0:04:30]} Bd7 {[%emt 0:07:30]} 11. Bb3 {[%emt 0:12:30]} O-O-O {[%emt 0:15:30]} 12. O-O-O {[%emt 0:02:30]} e5 {[%emt 0:08:30]} 13. d5 {[%emt 0:04:30]} Nb8 {[%emt 0:13:30]} 14. Bc4 {[%emt 0:12:30]} Be8 {[%emt 0:05:30]} 15. Nd2 {[%emt 0:08:30]} Nbd7 {[%emt 0:00:30]} 16. Nb5 {[%emt 0:06:30]} Kb8 {[%emt 0:01:30]} 17. Nb3 {[%emt 0:04:30]} Nb6 {[%emt 0:00:30]} 18. Nc3 {[%emt 0:02:30]} g5 {[%emt 0:04:30]} 19. Na5 {[%emt 0:02:30]} Nfd7 {[%emt 0:04:30]} 20. Bb5 {[%emt 0:04:30]} Nc5 {[%emt 0:01:27]} 21. Rhe1 {[%emt 0:09:17]} Bxb5 {[%emt 0:02:36]} 22. Nxb5 {[%emt 0:02:23]} gxh4 {[%emt 0:01:07]} 23. f3 {[%emt 0:03:44]} Qd7 {[%emt 0:05:02]} 24. Bg1 {[%emt 0:02:51]} a6 {[%emt 0:00:50]} 25. Na3 {[%emt 0:02:09]} Qa4 {[%emt 0:01:44]} 26. Nb3 {[%emt 0:02:03]} Nxb3+ {[%emt 0:08:40]} 27. axb3 {[%emt 0:00:30]} Qa5 {[%emt 0:00:39]} 28. e4 {[%emt 0:00:30]} fxe4 {[%emt 0:00:38]} 29. fxe4 {[%emt 0:00:01]} Bf6 {[%emt 0:00:14]} 30. Kb1 {[%emt 0:00:30]} Bg5 {[%emt 0:00:37]} 31. Rf1 {[%emt 0:00:30]} Rhf8 {[%emt 0:00:40]} 32. Bf2 {[%emt 0:00:30]} Nd7 {[%emt 0:00:40]} 33. Be1 {[%emt 0:00:30]} Qb6 {[%emt 0:00:37]} 34. Bf2 {[%emt 0:00:30]} c5 {[%emt 0:00:40]} 35. Nc4 {[%emt 0:00:30]} Qc7 {[%emt 0:00:38]} 36. Be1 {[%emt 0:00:30]} Rxf1 {[%emt 0:00:37]} 37. Qxf1 {[%emt 0:00:30]} b6 {[%emt 0:00:15]} 38. Qe2 {[%emt 0:00:48]} Rf8 {[%emt 0:00:40]} 39. Bc3 {[%emt 0:00:25]} Rf6 {[%emt 0:00:45]} 40. Rf1 {[%emt 0:00:21]} Qd8 {[%emt 0:00:00]} 41. b4 {[%emt 0:15:18]} Ka7 {[%emt 0:16:08]} 42. bxc5 {[%emt 0:04:56]} Nxc5 {[%emt 0:00:06]} 43. Rxf6 {[%emt 0:00:44]} Qxf6 {[%emt 0:00:11]} 44. Bb4 {[%emt 0:00:39]} Nb7 {[%emt 0:03:47]} 45. Be1 {[%emt 0:02:44]} b5 {[%emt 0:01:20]} 46. Na3 {[%emt 0:03:35]} Qf4 {[%emt 0:01:30]} 47. Bf2+ {[%emt 0:02:58]} Kb8 {[%emt 0:00:12]} 48. Ka2 {[%emt 0:00:22]} Qd2 {[%emt 0:06:12]} 49. Qf3 {[%emt 0:02:18]} Qf4 {[%emt 0:04:13]} 50. Qe2 {[%emt 0:00:13]} Qd2 {[%emt 0:01:25]} 51. Qf3 {[%emt 0:00:09]} Qf4 {[%emt 0:00:04]} 52. Qe2 {[%emt 0:00:05]} Qd2 {[%emt 0:00:05]} 1/2-1/2

[Event "26th Zadar Open 2019"]
[Site "Zadar"]
[Date "2019.12.15"]
[Round "1.26"]
[White "Rudolf, Michal"]
[Black "Ghersinich, Enrico"]
[Result "1-0"]
[ECO "B51"]
[WhiteElo "2328"]
[BlackElo "2157"]
[Annotator "NA"]
[PlyCount "75"]
[EventDate "2019.12.15"]
[EventType "swiss"]
[EventCountry "CRO"]
[SourceTitle "playchess.com"]
[Source "ChessBase"]
[SourceQuality "1"]
[TimeControl "40/5400+30:1800+30"]

1. e4 {[%emt 0:00:30]} c5 {[%emt 0:00:30]} 2. Nf3 {[%emt 0:00:00]} d6 {[%emt 0:00:30]} 3. Bb5+ {[%emt 0:00:00]} Nd7 {[%emt 0:00:30]} 4. O-O {[%emt 0:00:30]} a6 {[%emt 0:00:00]} 5. Bd3 {[%emt 0:00:00]} b5 {[%emt 0:00:00]} 6. c4 {[%emt 0:00:00]} Ne5 {[%emt 0:06:30]} 7. Nxe5 {[%emt 0:10:30]} dxe5 {[%emt 0:00:00]} 8. Be2 {[%emt 0:04:30]} b4 {[%emt 0:04:00]} 9. a3 {[%emt 0:00:30]} Qa5 {[%emt 0:02:30]} 10. d3 {[%emt 0:02:30]} e6 {[%emt 0:07:30]} 11. Nd2 {[%emt 0:02:30]} Nf6 {[%emt 0:07:30]} 12. Nf3 {[%emt 0:01:30]} Qc7 {[%emt 0:01:30]} 13. Be3 {[%emt 0:11:30]} Ng4 {[%emt 0:02:30]} 14. Bd2 {[%emt 0:00:30]} Bd7 {[%emt 0:05:30]} 15. Ne1 {[%emt 0:05:30]} Nf6 {[%emt 0:00:30]} 16. axb4 {[%emt 0:04:30]} cxb4 {[%emt 0:00:30]} 17. Nc2 {[%emt 0:00:30]} Qb8 {[%emt 0:02:30]} 18. Ra5 {[%emt 0:10:30]} Bd6 {[%emt 0:05:30]} 19. Qa1 {[%emt 0:00:30]} Qb7 {[%emt 0:01:30]} 20. f4 {[%emt 0:02:30]} Bc7 {[%emt 0:04:30]} 21. Rxe5 {[%emt 0:02:30]} Bxe5 {[%emt 0:00:30]} 22. fxe5 {[%emt 0:00:30]} Ng8 {[%emt 0:00:30]} 23. Bxb4 {[%emt 0:00:30]} Bc6 {[%emt 0:04:30]} 24. Qa3 {[%emt 0:07:30]} Ne7 {[%emt 0:10:30]} 25. Nd4 {[%emt 0:01:30]} Ng6 {[%emt 0:01:30]} 26. Bd6 {[%emt 0:03:30]} Bd7 {[%emt 0:02:30]} 27. Kh1 {[%emt 0:03:30]} f6 {[%emt 0:01:30]} 28. exf6 {[%emt 0:00:30]} gxf6 {[%emt 0:00:00]} 29. Rxf6 {[%emt 0:00:00]} e5 {[%emt 0:03:00]} 30. Nf5 {[%emt 0:02:00]} Bxf5 {[%emt 0:01:30]} 31. exf5 {[%emt 0:00:30]} Nh4 {[%emt 0:01:30]} 32. Bh5+ {[%emt 0:01:30]} Kd8 {[%emt 0:00:00]} 33. Qa5+ {[%emt 0:01:30]} Kc8 {[%emt 0:00:00]} 34. Qc5+ {[%emt 0:00:00]} Kd8 {[%emt 0:00:30]} 35. Bc7+ {[%emt 0:02:00]} Qxc7 {[%emt 0:01:30]} 36. Qd5+ {[%emt 0:00:30]} Qd7 {[%emt 0:00:30]} 37. Qxa8+ {[%emt 0:00:00]} Kc7 {[%emt 0:00:30]} 38. Qxh8 {[%emt 0:02:00]} 1-0

[Event "26th Zadar Open 2019"]
[Site "Zadar"]
[Date "2019.12.16"]
[Round "2"]
[White "Stany, G.A."]
[Black "Bhambure, Shantanu"]
[Result "1/2-1/2"]
[ECO "B90"]
[WhiteElo "2526"]
[BlackElo "2340"]
[Annotator "ChessBase"]
[PlyCount "89"]
[EventDate "2019.??.??"]
[EventCountry "CRO"]
[SourceTitle "playchess.com"]
[Source "ChessBase"]
[SourceQuality "1"]
[TimeControl "40/5400+30:1800+30"]

1. e4 c5 2. Nf3 d6 3. d4 cxd4 4. Nxd4 Nf6 5. Nc3 a6 6. Be3 e5 7. Nb3 Be6 8. f3 Nbd7 9. Qd2 b5 10. O-O-O Be7 11. g4 b4 12. Nd5 Bxd5 13. exd5 Nb6 14. Na5 Nbxd5 15. Nc4 Nxe3 16. Nxe3 O-O 17. Bc4 Nd7 18. h4 Nb6 19. Qxb4 d5 20. Qa5 d4 21. Bb3 Nd7 22. Qxd8 Bxd8 23. Nc4 a5 24. c3 a4 25. Bc2 Rc8 26. Nd6 Rc6 27. Ne4 a3 28. cxd4 axb2+ 29. Kxb2 exd4 30. Rxd4 Ne5 31. Bb3 Nxf3 32. Rd5 Bc7 33. Rc1 Rxc1 34. Kxc1 Nxh4 35. Rd7 Bf4+ 36. Kb2 Nf3 37. a4 Ne5 38. Rb7 Nxg4 39. a5 Rb8 40. Re7 h5 41. a6 Be3 42. Kc3 h4 43. Bd5 h3 44. Rxf7 Kh7 45. a7 1/2-1/2

[Event "26th Zadar Open 2019"]
[Site "Zadar"]
[Date "2019.12.16"]
[Round "2"]
[White "Doric, Darko"]
[Black "Pecnik, Leo"]
[Result "1/2-1/2"]
[ECO "E92"]
[WhiteElo "2492"]
[BlackElo "2326"]
[Annotator "ChessBase"]
[PlyCount "104"]
[EventDate "2019.??.??"]
[EventCountry "CRO"]
[SourceTitle "playchess.com"]
[Source "ChessBase"]
[SourceQuality "1"]
[TimeControl "40/5400+30:1800+30"]

1. d4 d6 2. Nf3 Nf6 3. c4 g6 4. Nc3 Bg7 5. e4 O-O 6. Be2 e5 7. Be3 h6 8. dxe5 Ng4 9. Bc1 Nxe5 10. Nxe5 dxe5 11. Qxd8 Rxd8 12. Nd5 Na6 13. Be3 Re8 14. c5 c6 15. Bxa6 cxd5 16. Bb5 Rd8 17. exd5 Rxd5 18. Bc4 Rd8 19. Ke2 e4 20. Rad1 Bd7 21. b4 a6 22. f3 Bb5 23. Rxd8+ Rxd8 24. Rc1 exf3+ 25. Kxf3 Bxc4 26. Rxc4 Rd3 27. a4 Rb3 28. Ke2 g5 29. Bd2 Be5 30. c6 bxc6 31. Rxc6 Bf4 32. Bc3 Bxh2 33. Kd2 Ra3 34. Rxh6 Bf4+ 35. Kc2 f6 36. Bb2 Rg3 37. Bxf6 g4 38. Rh8+ Kf7 39. Bd4 Ke6 40. Rh5 Rxg2+ 41. Kd3 g3 42. Ke4 Rh2 43. Ra5 Rh4 44. Kf3 Bd6 45. Bc5 Bxc5 46. bxc5 Kd5 47. Kxg3 Rc4 48. Kf3 Rxc5 49. Rxa6 Rc6 50. Rxc6 Kxc6 51. a5 Kb5 52. a6 Kxa6 1/2-1/2

[Event "26th Zadar Open 2019"]
[Site "Zadar"]
[Date "2019.12.16"]
[Round "2"]
[White "Galperin, Platon"]
[Black "Rudolf, Michal"]
[Result "0-1"]
[ECO "B11"]
[WhiteElo "2462"]
[BlackElo "2328"]
[Annotator "ChessBase"]
[PlyCount "114"]
[EventDate "2019.??.??"]
[EventCountry "CRO"]
[SourceTitle "playchess.com"]
[Source "ChessBase"]
[SourceQuality "1"]
[TimeControl "40/5400+30:1800+30"]

1. e4 c6 2. Nf3 d5 3. Nc3 Nf6 4. e5 Ne4 5. Ne2 Qb6 6. d4 e6 7. Ng3 c5 8. Bd3 Nxg3 9. fxg3 cxd4 10. O-O Nc6 11. Qe2 h6 12. a3 Bd7 13. b4 Be7 14. g4 O-O-O 15. b5 Na5 16. Bd2 Nc4 17. a4 f6 18. Rfb1 Nxd2 19. Qxd2 Rhf8 20. Qe2 fxe5 21. a5 Qc5 22. Nxe5 Bf6 23. b6 a6 24. Kh1 Qd6 25. Ng6 Rfe8 26. Bxa6 d3 27. Bxd3 Bxa1 28. Rxa1 e5 29. Bf5 Kb8 30. a6 Bxf5 31. gxf5 Qxb6 32. Nxe5 Qb2 33. Re1 bxa6 34. Nc6+ Kc7 35. Ne7 Kb7 36. Qf1 Qc3 37. Re6 Qc4 38. Qg1 d4 39. Qf2 Qc3 40. Qf1 Qa3 41. Qe1 Rd6 42. Re5 Ka7 43. Nc6+ Rxc6 44. Rxe8 Rxc2 45. Re7+ Kb6 46. Re6+ Kb5 47. Qe5+ Qc5 48. Qb8+ Kc4 49. Qb1 d3 50. Qa1 d2 51. Qxa6+ Kc3 52. Qa1+ Rb2 53. Re2 Qd4 54. Qa3+ Kc2 55. h3 Rb1+ 56. Kh2 Qf4+ 57. g3 Rh1+ 0-1

[Event "26th Zadar Open 2019"]
[Site "Zadar"]
[Date "2019.12.16"]
[Round "2"]
[White "Spalir, Jernej"]
[Black "Krasteva, Beloslava"]
[Result "1/2-1/2"]
[ECO "D37"]
[WhiteElo "2429"]
[BlackElo "2264"]
[Annotator "ChessBase"]
[PlyCount "106"]
[EventDate "2019.??.??"]
[EventCountry "CRO"]
[SourceTitle "playchess.com"]
[Source "ChessBase"]
[SourceQuality "1"]
[TimeControl "40/5400+30:1800+30"]

1. d4 d5 2. c4 e6 3. Nc3 Be7 4. Nf3 Nf6 5. Bf4 O-O 6. e3 c5 7. dxc5 Bxc5 8. cxd5 exd5 9. Be2 Nc6 10. O-O a6 11. Rc1 Be6 12. a3 Rc8 13. Ne5 Nxe5 14. Bxe5 Ne4 15. b4 Ba7 16. Nxe4 dxe4 17. Rxc8 Qxc8 18. Qb1 Bd5 19. Rc1 Qe6 20. Qa1 f6 21. Bd4 Bb8 22. Qc3 Rd8 23. g3 Qd6 24. Kg2 Be6 25. Bc4 Kf7 26. Bxe6+ Qxe6 27. Qc5 Rd5 28. Qc4 Rd8 29. Qc5 Rd5 30. Qc8 Qxc8 31. Rxc8 Be5 32. Bxe5 Rxe5 33. g4 g5 34. f3 exf3+ 35. Kxf3 Re7 36. a4 Ke6 37. e4 Kd7 38. Rb8 Kd6 39. Ke3 Ke5 40. h3 h5 41. gxh5 Rh7 42. Re8+ Kd6 43. Rd8+ Ke5 44. h4 Rxh5 45. Re8+ Kd6 46. hxg5 Rxg5 47. Rf8 Ke5 48. Re8+ Kd6 49. Kd4 Rg1 50. Rd8+ Kc6 51. Rc8+ Kd6 52. Rd8+ Kc6 53. Rc8+ Kd6 1/2-1/2

[Event "26th Zadar Open 2019"]
[Site "Zadar"]
[Date "2019.12.16"]
[Round "2"]
[White "Rezan, Sasa"]
[Black "Stocko, Josip"]
[Result "1-0"]
[ECO "E48"]
[WhiteElo "2415"]
[BlackElo "2267"]
[Annotator "ChessBase"]
[PlyCount "85"]
[EventDate "2019.??.??"]
[EventCountry "CRO"]
[SourceTitle "playchess.com"]
[Source "ChessBase"]
[SourceQuality "1"]
[TimeControl "40/5400+30:1800+30"]

1. d4 Nf6 2. c4 e6 3. Nc3 Bb4 4. e3 O-O 5. Bd3 d5 6. cxd5 exd5 7. Nge2 Re8 8. Bd2 c5 9. O-O Nc6 10. a3 cxd4 11. axb4 dxc3 12. Bxc3 Ne4 13. Bxe4 dxe4 14. b5 Ne7 15. Qa4 Nd5 16. Ng3 Nxc3 17. bxc3 f5 18. Rfd1 Qb6 19. Rd4 Be6 20. h3 Red8 21. Rad1 Rxd4 22. Rxd4 a6 23. bxa6 bxa6 24. Qa3 g6 25. Qe7 Bf7 26. c4 Rc8 27. Rd7 Qe6 28. Rd8+ Rxd8 29. Qxd8+ Kg7 30. c5 Qd5 31. Qb6 Be8 32. Qa7+ Bf7 33. Kh2 Qc6 34. Ne2 h5 35. h4 Kf6 36. Nd4 Qc8 37. Qb6+ Kg7 38. Qd6 a5 39. c6 a4 40. Qd7 Qe8 41. Qd6 Qa8 42. c7 a3 43. Qd8 1-0

[Event "26th Zadar Open 2019"]
[Site "Zadar"]
[Date "2019.12.16"]
[Round "2"]
[White "Moksh Amit Doshi"]
[Black "Sinanovic, Muhamed"]
[Result "1-0"]
[ECO "E11"]
[WhiteElo "2399"]
[BlackElo "2309"]
[Annotator "ChessBase"]
[PlyCount "63"]
[EventDate "2019.??.??"]
[EventCountry "CRO"]
[SourceTitle "playchess.com"]
[Source "ChessBase"]
[SourceQuality "1"]
[TimeControl "40/5400+30:1800+30"]

1. d4 e6 2. c4 Bb4+ 3. Nd2 Nf6 4. Ngf3 O-O 5. a3 Be7 6. e4 d6 7. Be2 Nfd7 8. Qc2 e5 9. Nb1 Bf6 10. d5 a5 11. Nc3 c5 12. Be3 Re8 13. g4 Nf8 14. Rg1 h6 15. h4 Be7 16. O-O-O g5 17. hxg5 hxg5 18. Rh1 Ng6 19. Rdg1 Nd7 20. Qd1 Bf6 21. Qf1 Kg7 22. Rg2 Nf4 23. Rgh2 Nf8 24. Rh8 Bxg4 25. Bxf4 exf4 26. Qg2 Bxc3 27. Qxg4 Qf6 28. Nxg5 Bxb2+ 29. Kb1 Qg6 30. Kxb2 Ra6 31. R8h6 Rb6+ 32. Ka2 1-0

[Event "26th Zadar Open 2019"]
[Site "Zadar"]
[Date "2019.12.16"]
[Round "2"]
[White "Lye, Lik Zang"]
[Black "Hrescak, Ivana"]
[Result "1-0"]
[ECO "B23"]
[WhiteElo "2379"]
[BlackElo "2194"]
[Annotator "ChessBase"]
[PlyCount "75"]
[EventDate "2019.??.??"]
[EventCountry "CRO"]
[SourceTitle "playchess.com"]
[Source "ChessBase"]
[SourceQuality "1"]
[TimeControl "40/5400+30:1800+30"]

1. e4 c5 2. Nc3 Nc6 3. Bb5 Nd4 4. Nf3 Nxb5 5. Nxb5 d5 6. exd5 a6 7. Nc3 Bg4 8. h3 Bh5 9. g4 Bg6 10. d4 c4 11. Ne5 Nf6 12. Qf3 b5 13. d6 Rc8 14. g5 Nd7 15. Bf4 e6 16. O-O-O b4 17. Nxg6 hxg6 18. Nd5 Bxd6 19. Bxd6 Qxg5+ 20. Ne3 Qb5 21. d5 e5 22. Qe4 b3 23. axb3 cxb3 24. Qb4 bxc2 25. Rd2 f6 26. Qxb5 axb5 27. Rxc2 Rxc2+ 28. Kxc2 Kf7 29. Kb3 Rh4 30. Rc1 Rxh3 31. Rc7 Ke8 32. Rc8+ Kf7 33. Rd8 Rf3 34. Rxd7+ Kg8 35. Bc5 Rxf2 36. d6 f5 37. Rd8+ Kh7 38. d7 1-0

[Event "26th Zadar Open 2019"]
[Site "Zadar"]
[Date "2019.12.16"]
[Round "2"]
[White "Bratovic, Blaz"]
[Black "Kozul, Zdenko"]
[Result "1/2-1/2"]
[ECO "B90"]
[WhiteElo "2359"]
[BlackElo "2590"]
[Annotator "RC"]
[PlyCount "119"]
[EventDate "2019.??.??"]
[EventCountry "CRO"]
[SourceTitle "playchess.com"]
[Source "ChessBase"]
[SourceQuality "1"]
[TimeControl "40/5400+30:1800+30"]

1. e4 c5 2. Nf3 d6 3. d4 cxd4 4. Nxd4 Nf6 5. Nc3 Nbd7 6. Be3 a6 7. g4 h6 8. h3 e5 9. Nf5 Nb6 10. f4 Qc7 11. Qe2 Bxf5 12. exf5 Nbd5 13. Nxd5 Nxd5 14. Bd2 Be7 15. Bg2 Bh4+ 16. Kf1 Nf6 17. Be1 Bxe1 18. Rxe1 O-O-O 19. fxe5 dxe5 20. Qxe5 Qxc2 21. Re2 Rd2 22. Rxd2 Qxd2 23. Qc3+ Qxc3 24. bxc3 Rd8 25. Ke2 Nd5 26. Bxd5 Rxd5 27. Rc1 Ra5 28. Rc2 Kd7 29. Ke3 b5 30. Rd2+ Ke7 31. Kd4 Ra3 32. Kc5 Rxc3+ 33. Kb6 Ra3 34. h4 f6 35. Kc6 Ra4 36. Rg2 Kf7 37. Kb6 h5 38. gxh5 Rxh4 39. Kxa6 Rxh5 40. Rf2 b4 41. Kb5 Rh4 42. Rb2 Rf4 43. Rxb4 Rxf5+ 44. Kb6 Re5 45. a4 g5 46. a5 Re6+ 47. Kb7 f5 48. a6 g4 49. a7 Re7+ 50. Ka6 Rxa7+ 51. Kxa7 Kf6 52. Kb6 g3 53. Kc5 Ke5 54. Rb8 Ke4 55. Re8+ Kf3 56. Kd5 g2 57. Rg8 Kf2 58. Ke5 g1=Q 59. Rxg1 Kxg1 60. Kxf5 1/2-1/2

[Event "26th Zadar Open 2019"]
[Site "Zadar"]
[Date "2019.12.16"]
[Round "2"]
[White "Nester, Ihor"]
[Black "Chan, Kim Yew"]
[Result "0-1"]
[ECO "E08"]
[WhiteElo "2329"]
[BlackElo "2245"]
[Annotator "ChessBase"]
[PlyCount "80"]
[EventDate "2019.??.??"]
[EventCountry "CRO"]
[SourceTitle "playchess.com"]
[Source "ChessBase"]
[SourceQuality "1"]
[TimeControl "40/5400+30:1800+30"]

1. Nf3 Nf6 2. c4 e6 3. g3 d5 4. d4 Bb4+ 5. Bd2 Be7 6. Bg2 O-O 7. O-O c6 8. Qc2 b6 9. Bf4 Bb7 10. Rd1 Nbd7 11. Nc3 dxc4 12. e4 b5 13. Rd2 Re8 14. Rad1 Nf8 15. h3 Ng6 16. Be3 Qc7 17. Nh2 Rad8 18. f4 a6 19. Ng4 Nd7 20. h4 f5 21. exf5 exf5 22. Qxf5 Nf6 23. Ne5 Bc8 24. Qc2 Ng4 25. Qe4 Nxe3 26. Qxe3 Bb4 27. Qf3 Ne7 28. Nxc6 Nxc6 29. Qxc6 Qxc6 30. Bxc6 Bxc3 31. bxc3 Re3 32. Kf2 Rxc3 33. d5 Bg4 34. Re1 Rf3+ 35. Kg2 c3 36. Rd4 c2 37. Rc1 Rc3 38. Rb4 Bf3+ 39. Kf2 Bxd5 40. Ke2 Rxg3 0-1

[Event "26th Zadar Open 2019"]
[Site "Zadar"]
[Date "2019.12.16"]
[Round "2"]
[White "Dixit, Nikhil"]
[Black "de Francesco, Klaus"]
[Result "1-0"]
[ECO "C00"]
[WhiteElo "2318"]
[BlackElo "2273"]
[Annotator "ChessBase"]
[PlyCount "65"]
[EventDate "2019.??.??"]
[EventCountry "CRO"]
[SourceTitle "playchess.com"]
[Source "ChessBase"]
[SourceQuality "1"]
[TimeControl "40/5400+30:1800+30"]

1. e4 e6 2. Qe2 e5 3. g3 Nc6 4. Bg2 Bc5 5. Nf3 d6 6. c3 a6 7. O-O Nf6 8. Rd1 Qe7 9. d4 Ba7 10. d5 Nb8 11. h3 h6 12. Be3 Bxe3 13. Qxe3 Nbd7 14. Nbd2 b6 15. a4 g5 16. a5 Rb8 17. axb6 Nxb6 18. b4 g4 19. hxg4 Nxg4 20. Qe2 h5 21. Nh4 Qg5 22. c4 Nd7 23. c5 Rxb4 24. cxd6 cxd6 25. Nc4 O-O 26. Nxd6 Nc5 27. Rac1 Qe7 28. Nhf5 Bxf5 29. Nxf5 Qa7 30. Qd2 f6 31. Qxb4 Nd3 32. Rxd3 Nxf2 33. Qc5 1-0

[Event "26th Zadar Open 2019"]
[Site "Zadar"]
[Date "2019.12.16"]
[Round "2"]
[White "Ascic, Pero"]
[Black "Sahil, Tickoo"]
[Result "1/2-1/2"]
[ECO "B52"]
[WhiteElo "2310"]
[BlackElo "2259"]
[Annotator "ChessBase"]
[PlyCount "65"]
[EventDate "2019.??.??"]
[EventCountry "CRO"]
[SourceTitle "playchess.com"]
[Source "ChessBase"]
[SourceQuality "1"]
[TimeControl "40/5400+30:1800+30"]

1. e4 c5 2. Nf3 d6 3. Bb5+ Bd7 4. Bxd7+ Nxd7 5. b3 Ngf6 6. Qe2 g6 7. Bb2 Bg7 8. O-O O-O 9. d3 Rc8 10. Nbd2 Nb8 11. a4 Nc6 12. Nc4 d5 13. exd5 Nxd5 14. Bxg7 Kxg7 15. Rfe1 e6 16. Nce5 Nxe5 17. Qxe5+ Qf6 18. Kf1 Rfd8 19. g3 Qxe5 20. Nxe5 f6 21. Nc4 e5 22. Ke2 Rc7 23. Kd2 Kf7 24. c3 Rcd7 25. Kc2 h5 26. h4 Nb6 27. Nb2 Nc8 28. a5 Nd6 29. Re2 Nf5 30. Re4 Nh6 31. Re2 Nf5 32. Re4 Nd6 33. Re2 1/2-1/2